[Event "Late-Titled-Tuesday-Blitz-July-09-2024"]
[Site "Chess.com"]
[Date "2024.07.09"]
[Round "3"]
[White "ncofre98"]
[Black "Chessbard1972"]
[Result "0-1"]
[WhiteElo "2538"]
[BlackElo "2282"]
[TimeControl "180+1"]
[EndTime "14:27:17 PDT"]
[Termination "Chessbard1972 won by resignation"]

1. e4 {[%clk 0:03:00.9]} 1... c5 {[%clk 0:02:59]} 2. Nf3 {[%clk 0:03:00.7]} 2...
Nc6 {[%clk 0:02:59.3]} 3. Bb5 {[%clk 0:03:01.2]} 3... g6 {[%clk 0:02:58]} 4. O-O
{[%clk 0:02:59.2]} 4... Bg7 {[%clk 0:02:57.2]} 5. Re1 {[%clk 0:02:58.7]} 5... e5
{[%clk 0:02:56.3]} 6. c3 {[%clk 0:02:51.7]} 6... Nge7 {[%clk 0:02:55.3]} 7. Na3
{[%clk 0:02:46.5]} 7... O-O {[%clk 0:02:53.5]} 8. Nc4 {[%clk 0:02:43.8]} 8... d6
{[%clk 0:02:49.6]} 9. Ne3 {[%clk 0:02:38.5]} 9... a6 {[%clk 0:02:44.3]} 10. Bc4
{[%clk 0:02:31.4]} 10... b5 {[%clk 0:02:42.8]} 11. Bf1 {[%clk 0:02:31.4]} 11...
h6 {[%clk 0:02:38.5]} 12. a4 {[%clk 0:02:30]} 12... Be6 {[%clk 0:02:35.4]} 13.
axb5 {[%clk 0:02:24.8]} 13... axb5 {[%clk 0:02:35]} 14. Rxa8 {[%clk 0:02:24.4]}
14... Qxa8 {[%clk 0:02:35.1]} 15. Bxb5 {[%clk 0:02:24]} 15... f5 {[%clk
0:02:30.4]} 16. d3 {[%clk 0:02:23.1]} 16... f4 {[%clk 0:02:27.8]} 17. Nf1 {[%clk
0:02:18.2]} 17... g5 {[%clk 0:02:25]} 18. h3 {[%clk 0:02:17.3]} 18... Kh8 {[%clk
0:02:22.9]} 19. Bc4 {[%clk 0:02:14.4]} 19... Bd7 {[%clk 0:02:22.8]} 20. Nxg5
{[%clk 0:02:09.9]} 20... Qe8 {[%clk 0:02:13.5]} 21. Ne6 {[%clk 0:02:00.3]} 21...
Rf6 {[%clk 0:02:09.3]} 22. Nxg7 {[%clk 0:01:35.1]} 22... Kxg7 {[%clk 0:02:08.9]}
23. Nh2 {[%clk 0:01:19.5]} 23... Rg6 {[%clk 0:01:58.5]} 24. Kh1 {[%clk 0:01:18]}
24... Rg5 {[%clk 0:01:52.4]} 25. Rg1 {[%clk 0:01:12.7]} 25... Ng6 {[%clk
0:01:43.2]} 26. Nf3 {[%clk 0:00:59.7]} 26... Rh5 {[%clk 0:01:41.6]} 27. Nd4
{[%clk 0:00:51.4]} 27... Nh4 {[%clk 0:01:37.2]} 28. Nxc6 {[%clk 0:00:43.3]}
28... Bxc6 {[%clk 0:01:36.8]} 29. Qg4+ {[%clk 0:00:41.4]} 29... Kh8 {[%clk
0:01:31.3]} 30. g3 {[%clk 0:00:37]} 30... Bd7 {[%clk 0:01:24.7]} 31. gxh4 {[%clk
0:00:20.8]} 31... Bxg4 {[%clk 0:01:22.2]} 32. Rxg4 {[%clk 0:00:21.3]} 32... Qe7
{[%clk 0:01:16.3]} 33. Kg2 {[%clk 0:00:03.1]} 33... Rxh4 {[%clk 0:01:15.8]} 34.
Rg6 {[%clk 0:00:01.5]} 34... Rh5 {[%clk 0:01:12.7]} 35. f3 {[%clk 0:00:01]}
35... Rg5+ {[%clk 0:01:12.6]} 0-1

[Event "Late-Titled-Tuesday-Blitz-July-09-2024"]
[Site "Chess.com"]
[Date "2024.07.09"]
[Round "3"]
[White "ritanovikova"]
[Black "Kyrko_Gamba"]
[Result "0-1"]
[WhiteElo "2146"]
[BlackElo "2525"]
[TimeControl "180+1"]
[EndTime "14:27:19 PDT"]
[Termination "Kyrko_Gamba won by resignation"]

1. e4 {[%clk 0:02:56.2]} 1... b6 {[%clk 0:03:00.9]} 2. d4 {[%clk 0:02:55.8]}
2... Bb7 {[%clk 0:03:01.1]} 3. Nc3 {[%clk 0:02:55.7]} 3... e6 {[%clk 0:03:01.4]}
4. Nf3 {[%clk 0:02:54.9]} 4... Bb4 {[%clk 0:02:59.9]} 5. Bd3 {[%clk 0:02:54.4]}
5... Nf6 {[%clk 0:02:59.9]} 6. e5 {[%clk 0:02:52.1]} 6... Ne4 {[%clk 0:02:58.3]}
7. Bxe4 {[%clk 0:02:40.4]} 7... Bxe4 {[%clk 0:02:56.9]} 8. O-O {[%clk 0:02:41]}
8... Bb7 {[%clk 0:02:54.7]} 9. Bg5 {[%clk 0:02:33.7]} 9... Be7 {[%clk
0:02:54.3]} 10. Bxe7 {[%clk 0:02:32.7]} 10... Qxe7 {[%clk 0:02:55.2]} 11. d5
{[%clk 0:02:27.7]} 11... Na6 {[%clk 0:02:46.9]} 12. a3 {[%clk 0:02:11.7]} 12...
exd5 {[%clk 0:02:36.8]} 13. Nxd5 {[%clk 0:02:09.6]} 13... Qe6 {[%clk 0:02:36.9]}
14. c4 {[%clk 0:02:07.1]} 14... O-O-O {[%clk 0:02:35.8]} 15. b4 {[%clk
0:02:06.3]} 15... Qh6 {[%clk 0:02:25.1]} 16. Qd2 {[%clk 0:01:44.2]} 16... Qxd2
{[%clk 0:02:24.1]} 17. Nxd2 {[%clk 0:01:45.1]} 17... d6 {[%clk 0:02:23.7]} 18.
f4 {[%clk 0:01:40.2]} 18... dxe5 {[%clk 0:02:21.6]} 19. Ne7+ {[%clk 0:01:24.6]}
19... Kb8 {[%clk 0:02:15.7]} 20. Nf3 {[%clk 0:01:11.8]} 20... e4 {[%clk
0:02:08.4]} 21. Ng5 {[%clk 0:01:03.2]} 21... Rd2 {[%clk 0:02:07.2]} 22. Rf2
{[%clk 0:00:59.3]} 22... e3 {[%clk 0:01:52.3]} 23. Rxd2 {[%clk 0:00:57.2]} 23...
exd2 {[%clk 0:01:53.2]} 24. Rd1 {[%clk 0:00:57.3]} 24... Re8 {[%clk 0:01:53.2]}
25. Rxd2 {[%clk 0:00:45.5]} 25... Rxe7 {[%clk 0:01:49.8]} 26. Rd8+ {[%clk
0:00:45.6]} 26... Bc8 {[%clk 0:01:49.9]} 27. Nf3 {[%clk 0:00:31.3]} 27... Kb7
{[%clk 0:01:44.3]} 28. Nd4 {[%clk 0:00:22.6]} 28... Rd7 {[%clk 0:01:44.3]} 29.
Rxd7 {[%clk 0:00:20.4]} 29... Bxd7 {[%clk 0:01:45.2]} 30. b5 {[%clk 0:00:20.6]}
30... Nc5 {[%clk 0:01:44.6]} 31. h3 {[%clk 0:00:18.5]} 31... Nd3 {[%clk
0:01:40.6]} 32. Nb3 {[%clk 0:00:13.5]} 32... Nxf4 {[%clk 0:01:39.9]} 33. c5
{[%clk 0:00:13.3]} 33... Bxb5 {[%clk 0:01:39.7]} 34. Nd4 {[%clk 0:00:12.5]}
34... Bd7 {[%clk 0:01:37.6]} 35. cxb6 {[%clk 0:00:11.4]} 35... axb6 {[%clk
0:01:37.2]} 36. Kf2 {[%clk 0:00:10.1]} 36... c5 {[%clk 0:01:37.1]} 37. Nc2
{[%clk 0:00:09.9]} 37... Nd5 {[%clk 0:01:33.9]} 38. Ne3 {[%clk 0:00:09.8]} 38...
Nxe3 {[%clk 0:01:33.7]} 39. Kxe3 {[%clk 0:00:09.6]} 39... Kc6 {[%clk 0:01:34.6]}
40. g4 {[%clk 0:00:08.4]} 40... Be6 {[%clk 0:01:35.5]} 41. g5 {[%clk 0:00:09]}
41... Bd5 {[%clk 0:01:36.4]} 42. g6 {[%clk 0:00:09.4]} 42... fxg6 {[%clk
0:01:37]} 43. h4 {[%clk 0:00:09.8]} 43... h5 {[%clk 0:01:37.9]} 44. Kd2 {[%clk
0:00:09.7]} 44... Be6 {[%clk 0:01:38.7]} 45. Kc3 {[%clk 0:00:10.6]} 45... Bf5
{[%clk 0:01:39.4]} 0-1

[Event "Late-Titled-Tuesday-Blitz-July-09-2024"]
[Site "Chess.com"]
[Date "2024.07.09"]
[Round "3"]
[White "Itay121"]
[Black "LordIron"]
[Result "1-0"]
[WhiteElo "2522"]
[BlackElo "2333"]
[TimeControl "180+1"]
[EndTime "14:27:22 PDT"]
[Termination "Itay121 won on time"]

1. e4 {[%clk 0:03:00.9]} 1... g6 {[%clk 0:03:00.3]} 2. d4 {[%clk 0:03:00]} 2...
Bg7 {[%clk 0:03:01.2]} 3. h4 {[%clk 0:02:59.7]} 3... h5 {[%clk 0:03:00.5]} 4.
Nc3 {[%clk 0:02:58.6]} 4... a6 {[%clk 0:03:00.8]} 5. a4 {[%clk 0:02:57.8]} 5...
b6 {[%clk 0:03:00.8]} 6. Bc4 {[%clk 0:02:57.3]} 6... e6 {[%clk 0:03:00]} 7. Nf3
{[%clk 0:02:56.1]} 7... Ne7 {[%clk 0:03:00.6]} 8. O-O {[%clk 0:02:51.4]} 8... d5
{[%clk 0:02:59.9]} 9. Bb3 {[%clk 0:02:46.6]} 9... dxe4 {[%clk 0:02:54.5]} 10.
Nxe4 {[%clk 0:02:47.5]} 10... Bb7 {[%clk 0:02:54.6]} 11. Re1 {[%clk 0:02:47.4]}
11... O-O {[%clk 0:02:50.1]} 12. Bg5 {[%clk 0:02:45.9]} 12... Nd7 {[%clk
0:02:26.7]} 13. Qd2 {[%clk 0:02:42.1]} 13... Kh7 {[%clk 0:02:12.7]} 14. Rad1
{[%clk 0:02:35.6]} 14... f6 {[%clk 0:01:30]} 15. Bxe6 {[%clk 0:02:30.5]} 15...
fxg5 {[%clk 0:01:15.5]} 16. Nfxg5+ {[%clk 0:02:31.4]} 16... Kh8 {[%clk 0:01:16]}
17. Nf7+ {[%clk 0:02:26.8]} 17... Rxf7 {[%clk 0:01:14.9]} 18. Bxf7 {[%clk
0:02:27.7]} 18... Nf8 {[%clk 0:01:00.9]} 19. Ng5 {[%clk 0:02:22.6]} 19... Nf5
{[%clk 0:00:53.9]} 20. Bxg6 {[%clk 0:02:20.1]} 20... Qd5 {[%clk 0:00:37.8]} 21.
Nf7+ {[%clk 0:01:59.4]} 21... Kg8 {[%clk 0:00:37.5]} 22. Qg5 {[%clk 0:01:55]}
22... Nxg6 {[%clk 0:00:35]} 23. Ne5 {[%clk 0:01:48.3]} 23... Nxe5 {[%clk
0:00:25.2]} 24. dxe5 {[%clk 0:01:49.2]} 24... Qe6 {[%clk 0:00:24.9]} 25. Qxh5
{[%clk 0:01:44.4]} 25... Rf8 {[%clk 0:00:23.2]} 26. Qg4 {[%clk 0:01:36.5]} 26...
Qe7 {[%clk 0:00:17.9]} 27. Qg5 {[%clk 0:01:30.2]} 27... Qxg5 {[%clk 0:00:13.4]}
28. hxg5 {[%clk 0:01:31.1]} 28... Nh4 {[%clk 0:00:14]} 29. Rd7 {[%clk
0:01:24.6]} 29... Bxg2 {[%clk 0:00:12.2]} 30. Red1 {[%clk 0:01:16.6]} 30... Be4
{[%clk 0:00:09]} 31. Rxc7 {[%clk 0:01:15.1]} 31... Bxe5 {[%clk 0:00:08.9]} 32.
Re7 {[%clk 0:01:10.9]} 32... Nf3+ {[%clk 0:00:05.4]} 33. Kf1 {[%clk 0:01:09.2]}
33... Bxc2 {[%clk 0:00:02.1]} 34. Rdd7 {[%clk 0:01:07.4]} 1-0

[Event "Late-Titled-Tuesday-Blitz-July-09-2024"]
[Site "Chess.com"]
[Date "2024.07.09"]
[Round "3"]
[White "Flawless_Fighter"]
[Black "Bugcrusher"]
[Result "1-0"]
[WhiteElo "2769"]
[BlackElo "2473"]
[TimeControl "180+1"]
[EndTime "14:27:25 PDT"]
[Termination "Flawless_Fighter won by resignation"]

1. c4 {[%clk 0:03:00.9]} 1... Nf6 {[%clk 0:02:58.1]} 2. g3 {[%clk 0:03:00.6]}
2... e6 {[%clk 0:02:56.4]} 3. Bg2 {[%clk 0:03:00.6]} 3... d5 {[%clk 0:02:56.5]}
4. cxd5 {[%clk 0:02:59.7]} 4... exd5 {[%clk 0:02:56.2]} 5. Nf3 {[%clk
0:03:00.5]} 5... Bd6 {[%clk 0:02:52.9]} 6. O-O {[%clk 0:03:00.8]} 6... O-O
{[%clk 0:02:53]} 7. d4 {[%clk 0:03:01.3]} 7... c6 {[%clk 0:02:52.1]} 8. Nc3
{[%clk 0:03:01.5]} 8... Bf5 {[%clk 0:02:50.9]} 9. Bf4 {[%clk 0:02:58.7]} 9... h6
{[%clk 0:02:49.7]} 10. Bxd6 {[%clk 0:02:58.3]} 10... Qxd6 {[%clk 0:02:49.8]} 11.
Qb3 {[%clk 0:02:58.6]} 11... Nbd7 {[%clk 0:02:35.7]} 12. e3 {[%clk 0:02:49.6]}
12... Nb6 {[%clk 0:02:33.4]} 13. a4 {[%clk 0:02:45.3]} 13... Nc4 {[%clk
0:02:29]} 14. a5 {[%clk 0:02:44.8]} 14... b5 {[%clk 0:02:25.7]} 15. Qa2 {[%clk
0:02:27.7]} 15... Bg4 {[%clk 0:02:13.2]} 16. b3 {[%clk 0:02:19.6]} 16... Bxf3
{[%clk 0:02:12.7]} 17. Bxf3 {[%clk 0:02:18.5]} 17... b4 {[%clk 0:02:01.9]} 18.
bxc4 {[%clk 0:02:07.2]} 18... bxc3 {[%clk 0:02:01.4]} 19. c5 {[%clk 0:02:07.6]}
19... Qd7 {[%clk 0:01:53]} 20. Rfc1 {[%clk 0:02:02.2]} 20... Ne4 {[%clk
0:01:52.3]} 21. Bxe4 {[%clk 0:02:00.8]} 21... dxe4 {[%clk 0:01:52.6]} 22. Rxc3
{[%clk 0:02:01.5]} 22... Qh3 {[%clk 0:01:50.1]} 23. Rb1 {[%clk 0:01:49.4]} 23...
Rad8 {[%clk 0:01:45.7]} 24. Qc2 {[%clk 0:01:43.1]} 24... Rfe8 {[%clk 0:01:41.4]}
25. Rcb3 {[%clk 0:01:36.3]} 25... Qg4 {[%clk 0:01:24.6]} 26. Qd1 {[%clk
0:01:30.3]} 26... Qh3 {[%clk 0:01:19.2]} 27. Qf1 {[%clk 0:01:23.4]} 27... Qf5
{[%clk 0:01:17]} 28. Rb7 {[%clk 0:01:21.6]} 28... Rd7 {[%clk 0:01:14.6]} 29. a6
{[%clk 0:01:19.7]} 29... Ree7 {[%clk 0:01:11.6]} 30. Rxd7 {[%clk 0:01:18.2]}
30... Rxd7 {[%clk 0:01:11.9]} 31. Rb7 {[%clk 0:01:17.2]} 31... Qd5 {[%clk
0:01:09.4]} 32. Qb1 {[%clk 0:01:15.3]} 32... Kh7 {[%clk 0:01:06.5]} 33. Rxd7
{[%clk 0:01:14.3]} 33... Qxd7 {[%clk 0:01:06.2]} 34. Qxe4+ {[%clk 0:01:14.8]}
34... g6 {[%clk 0:01:06.8]} 35. Qf4 {[%clk 0:01:14.2]} 35... Kg7 {[%clk
0:01:05.4]} 36. Qe5+ {[%clk 0:01:14.1]} 36... Kh7 {[%clk 0:01:04.8]} 37. Qb8
{[%clk 0:01:13.6]} 37... Kg7 {[%clk 0:01:02.6]} 38. Qb7 {[%clk 0:01:13.1]} 38...
Qd5 {[%clk 0:01:00.2]} 39. Qxa7 {[%clk 0:01:10.8]} 39... Qa2 {[%clk 0:00:56.6]}
40. Qb7 {[%clk 0:01:08.6]} 40... Qa1+ {[%clk 0:00:55.8]} 41. Kg2 {[%clk
0:01:08.6]} 41... Qd1 {[%clk 0:00:51.9]} 42. a7 {[%clk 0:01:08]} 42... h5 {[%clk
0:00:51.6]} 43. a8=Q {[%clk 0:01:07.5]} 43... h4 {[%clk 0:00:51.5]} 44. Qxc6
{[%clk 0:01:00]} 44... Qg4 {[%clk 0:00:41.2]} 45. h3 {[%clk 0:00:55.4]} 1-0

[Event "Late-Titled-Tuesday-Blitz-July-09-2024"]
[Site "Chess.com"]
[Date "2024.07.09"]
[Round "3"]
[White "ElDivis"]
[Black "baki83"]
[Result "0-1"]
[WhiteElo "2537"]
[BlackElo "2830"]
[TimeControl "180+1"]
[EndTime "14:27:28 PDT"]
[Termination "baki83 won by resignation"]

1. e4 {[%clk 0:03:00.9]} 1... c5 {[%clk 0:02:58.5]} 2. Nc3 {[%clk 0:02:58.2]}
2... Nc6 {[%clk 0:02:57.9]} 3. Nf3 {[%clk 0:02:56]} 3... e6 {[%clk 0:02:58]} 4.
d4 {[%clk 0:02:52.6]} 4... cxd4 {[%clk 0:02:58.3]} 5. Nxd4 {[%clk 0:02:53.5]}
5... Qc7 {[%clk 0:02:58]} 6. g3 {[%clk 0:02:53.3]} 6... h5 {[%clk 0:02:56.5]} 7.
Bg2 {[%clk 0:02:45.1]} 7... h4 {[%clk 0:02:56.8]} 8. O-O {[%clk 0:02:42.2]} 8...
hxg3 {[%clk 0:02:56.2]} 9. hxg3 {[%clk 0:02:42.5]} 9... a6 {[%clk 0:02:55.1]}
10. Nxc6 {[%clk 0:02:38.1]} 10... bxc6 {[%clk 0:02:53.9]} 11. Re1 {[%clk
0:02:27.3]} 11... e5 {[%clk 0:02:47]} 12. Na4 {[%clk 0:02:05]} 12... Nf6 {[%clk
0:02:33.1]} 13. c4 {[%clk 0:01:54.4]} 13... d6 {[%clk 0:02:31.2]} 14. c5 {[%clk
0:01:42.4]} 14... dxc5 {[%clk 0:02:30.5]} 15. Be3 {[%clk 0:01:38.1]} 15... Be7
{[%clk 0:02:21.4]} 16. Rc1 {[%clk 0:01:17]} 16... Rb8 {[%clk 0:02:17.9]} 17.
Bxc5 {[%clk 0:01:11.8]} 17... Bxc5 {[%clk 0:02:14.3]} 18. Rxc5 {[%clk
0:01:12.6]} 18... O-O {[%clk 0:02:04.1]} 19. Qc2 {[%clk 0:01:04.8]} 19... Rd8
{[%clk 0:01:55.7]} 20. Rxc6 {[%clk 0:00:59.3]} 20... Qa5 {[%clk 0:01:55.2]} 21.
Nc3 {[%clk 0:00:46.3]} 21... Bb7 {[%clk 0:01:40.4]} 22. Rc4 {[%clk 0:00:38.5]}
22... Rd4 {[%clk 0:01:40.5]} 23. Qe2 {[%clk 0:00:23.1]} 23... Rbd8 {[%clk
0:01:33.3]} 24. Rxd4 {[%clk 0:00:19.5]} 24... exd4 {[%clk 0:01:33.4]} 25. Nd5
{[%clk 0:00:19.8]} 25... Bxd5 {[%clk 0:01:20.6]} 26. exd5 {[%clk 0:00:19.9]}
26... Re8 {[%clk 0:01:14.9]} 27. Qxe8+ {[%clk 0:00:20.1]} 27... Nxe8 {[%clk
0:01:15.3]} 28. Rxe8+ {[%clk 0:00:20.8]} 28... Kh7 {[%clk 0:01:16]} 29. d6
{[%clk 0:00:15.9]} 29... Qb5 {[%clk 0:01:13.6]} 30. Re7 {[%clk 0:00:11.1]} 30...
Qb4 {[%clk 0:01:00.1]} 31. Be4+ {[%clk 0:00:06.8]} 31... Kh6 {[%clk 0:00:59.5]}
32. Rxf7 {[%clk 0:00:02.2]} 32... Qe1+ {[%clk 0:00:59.2]} 33. Kh2 {[%clk
0:00:02.6]} 33... Qxe4 {[%clk 0:00:59.7]} 34. Rf4 {[%clk 0:00:03]} 34... Qd5
{[%clk 0:00:58.7]} 35. Rh4+ {[%clk 0:00:02.1]} 35... Kg6 {[%clk 0:00:58.5]} 0-1

[Event "Late-Titled-Tuesday-Blitz-July-09-2024"]
[Site "Chess.com"]
[Date "2024.07.09"]
[Round "3"]
[White "WindWhistler11"]
[Black "OriTaichman"]
[Result "1-0"]
[WhiteElo "2480"]
[BlackElo "2704"]
[TimeControl "180+1"]
[EndTime "14:27:28 PDT"]
[Termination "WindWhistler11 won by resignation"]

1. Nf3 {[%clk 0:03:00.9]} 1... Nf6 {[%clk 0:02:55.8]} 2. g3 {[%clk 0:03:01.3]}
2... g6 {[%clk 0:02:56.1]} 3. b3 {[%clk 0:03:01.7]} 3... Bg7 {[%clk 0:02:56.4]}
4. Bb2 {[%clk 0:03:02.2]} 4... O-O {[%clk 0:02:57.2]} 5. Bg2 {[%clk 0:03:02.3]}
5... d6 {[%clk 0:02:57.6]} 6. d4 {[%clk 0:03:02.7]} 6... e5 {[%clk 0:02:57.6]}
7. dxe5 {[%clk 0:03:02.2]} 7... Nfd7 {[%clk 0:02:47.8]} 8. Qc1 {[%clk
0:02:54.6]} 8... dxe5 {[%clk 0:02:47.1]} 9. O-O {[%clk 0:02:53.1]} 9... e4
{[%clk 0:02:45.2]} 10. Nfd2 {[%clk 0:02:50.4]} 10... f5 {[%clk 0:02:42.1]} 11.
Nc4 {[%clk 0:02:44.5]} 11... b5 {[%clk 0:02:31.2]} 12. Ne3 {[%clk 0:02:40.2]}
12... Bb7 {[%clk 0:02:19.1]} 13. Nc3 {[%clk 0:02:36.3]} 13... c6 {[%clk
0:02:08.6]} 14. Rd1 {[%clk 0:02:22.7]} 14... Qc7 {[%clk 0:01:52.4]} 15. a4
{[%clk 0:02:19.4]} 15... a6 {[%clk 0:01:49.9]} 16. axb5 {[%clk 0:02:18.3]} 16...
axb5 {[%clk 0:01:50.8]} 17. Rxa8 {[%clk 0:02:18.4]} 17... Bxa8 {[%clk
0:01:51.7]} 18. Qa1 {[%clk 0:02:07.8]} 18... Bb7 {[%clk 0:01:51]} 19. Nxb5
{[%clk 0:02:03.1]} 19... Bxb2 {[%clk 0:01:44.5]} 20. Nxc7 {[%clk 0:02:02.2]}
20... Bxa1 {[%clk 0:01:45.4]} 21. Rxa1 {[%clk 0:02:00.6]} 21... Nc5 {[%clk
0:01:40.6]} 22. b4 {[%clk 0:01:49.2]} 22... Nca6 {[%clk 0:01:40.7]} 23. Nxa6
{[%clk 0:01:39.9]} 23... Nxa6 {[%clk 0:01:41.6]} 24. c3 {[%clk 0:01:39.3]} 24...
Kf7 {[%clk 0:01:39.8]} 25. Nc4 {[%clk 0:01:39]} 25... Rd8 {[%clk 0:01:28.4]} 26.
Na5 {[%clk 0:01:36]} 26... Ba8 {[%clk 0:01:27.1]} 27. e3 {[%clk 0:01:15]} 27...
c5 {[%clk 0:01:01.3]} 28. Bf1 {[%clk 0:01:07.6]} 28... Rd6 {[%clk 0:00:38.8]}
29. Nc4 {[%clk 0:01:00.9]} 29... Re6 {[%clk 0:00:38]} 30. b5 {[%clk 0:00:45.2]}
30... Nc7 {[%clk 0:00:37.3]} 31. b6 {[%clk 0:00:44.3]} 31... Na6 {[%clk
0:00:37.1]} 32. Rxa6 {[%clk 0:00:42.7]} 32... Bd5 {[%clk 0:00:31.4]} 33. b7
{[%clk 0:00:35.9]} 33... Bxb7 {[%clk 0:00:27.6]} 34. Ra7 {[%clk 0:00:35.7]}
34... Re7 {[%clk 0:00:27.8]} 35. Rxb7 {[%clk 0:00:36]} 1-0

[Event "Late-Titled-Tuesday-Blitz-July-09-2024"]
[Site "Chess.com"]
[Date "2024.07.09"]
[Round "3"]
[White "manitodeplomo"]
[Black "sari07"]
[Result "1-0"]
[WhiteElo "2612"]
[BlackElo "2393"]
[TimeControl "180+1"]
[EndTime "14:27:28 PDT"]
[Termination "manitodeplomo won by resignation"]

1. d4 {[%clk 0:03:00.9]} 1... Nf6 {[%clk 0:02:55.4]} 2. c4 {[%clk 0:03:01]} 2...
c5 {[%clk 0:02:55.2]} 3. d5 {[%clk 0:03:00.9]} 3... e6 {[%clk 0:02:55.6]} 4. Nc3
{[%clk 0:02:59]} 4... exd5 {[%clk 0:02:55]} 5. cxd5 {[%clk 0:02:58.9]} 5... d6
{[%clk 0:02:54.6]} 6. e4 {[%clk 0:02:59.3]} 6... g6 {[%clk 0:02:54.5]} 7. h3
{[%clk 0:02:59.8]} 7... Bg7 {[%clk 0:02:54.1]} 8. Nf3 {[%clk 0:03:00.3]} 8...
O-O {[%clk 0:02:54]} 9. Bd3 {[%clk 0:03:00.7]} 9... a6 {[%clk 0:02:53.5]} 10. a4
{[%clk 0:03:00.3]} 10... Re8 {[%clk 0:02:50.6]} 11. O-O {[%clk 0:03:00.2]} 11...
Nbd7 {[%clk 0:02:49.9]} 12. Re1 {[%clk 0:02:59.3]} 12... Qc7 {[%clk 0:02:36.4]}
13. Bf4 {[%clk 0:02:55.7]} 13... Nh5 {[%clk 0:02:34.6]} 14. Bh2 {[%clk
0:02:51.1]} 14... Ne5 {[%clk 0:02:29.6]} 15. Be2 {[%clk 0:02:50.5]} 15... Qe7
{[%clk 0:02:06.8]} 16. Nxe5 {[%clk 0:02:35.2]} 16... Bxe5 {[%clk 0:02:06.3]} 17.
Bxh5 {[%clk 0:02:32.7]} 17... Bxh2+ {[%clk 0:01:59.7]} 18. Kxh2 {[%clk
0:02:33.6]} 18... Qe5+ {[%clk 0:01:59.9]} 19. g3 {[%clk 0:02:27.6]} 19... Qxh5
{[%clk 0:01:41.4]} 20. Qxh5 {[%clk 0:02:26.6]} 20... gxh5 {[%clk 0:01:42.3]} 21.
f4 {[%clk 0:02:25.5]} 21... f6 {[%clk 0:01:38.1]} 22. Rab1 {[%clk 0:02:17.2]}
22... Bd7 {[%clk 0:01:30.1]} 23. b4 {[%clk 0:02:16.6]} 23... Rac8 {[%clk
0:01:21.2]} 24. b5 {[%clk 0:02:09.4]} 24... a5 {[%clk 0:01:07.7]} 25. Rbd1
{[%clk 0:01:53.5]} 25... Kf7 {[%clk 0:01:00.1]} 26. Rc1 {[%clk 0:01:39.5]} 26...
Re7 {[%clk 0:00:51]} 27. Re3 {[%clk 0:01:23]} 27... Ree8 {[%clk 0:00:51.2]} 28.
Rce1 {[%clk 0:01:23]} 28... b6 {[%clk 0:00:49.6]} 29. e5 {[%clk 0:01:19.6]}
29... fxe5 {[%clk 0:00:48.5]} 30. fxe5 {[%clk 0:01:20.5]} 30... dxe5 {[%clk
0:00:48.7]} 31. Rxe5 {[%clk 0:01:20.7]} 31... Kf6 {[%clk 0:00:41.7]} 32. R5e4
{[%clk 0:01:12.4]} 32... Kg6 {[%clk 0:00:34.7]} 33. Re7 {[%clk 0:01:06.9]} 33...
Kf6 {[%clk 0:00:31.6]} 34. d6 {[%clk 0:01:06.9]} 34... Rxe7 {[%clk 0:00:25.8]}
35. Rxe7 {[%clk 0:01:05.5]} 35... Be6 {[%clk 0:00:20]} 36. Ne4+ {[%clk
0:01:05.3]} 36... Ke5 {[%clk 0:00:20.5]} 37. Ng5 {[%clk 0:01:04.2]} 37... Kf6
{[%clk 0:00:20.1]} 38. Nxh7+ {[%clk 0:01:00.5]} 38... Ke5 {[%clk 0:00:18.7]} 39.
Ng5 {[%clk 0:00:59.5]} 39... Kf6 {[%clk 0:00:18.5]} 40. Nxe6 {[%clk 0:00:59.1]}
1-0

[Event "Late-Titled-Tuesday-Blitz-July-09-2024"]
[Site "Chess.com"]
[Date "2024.07.09"]
[Round "3"]
[White "Brown_Mamba24"]
[Black "Fraler15"]
[Result "1-0"]
[WhiteElo "2520"]
[BlackElo "2339"]
[TimeControl "180+1"]
[EndTime "14:27:29 PDT"]
[Termination "Brown_Mamba24 won on time"]

1. d4 {[%clk 0:03:00.9]} 1... d5 {[%clk 0:02:59.3]} 2. Nf3 {[%clk 0:03:01]} 2...
e6 {[%clk 0:02:57.8]} 3. c4 {[%clk 0:03:01.4]} 3... Nf6 {[%clk 0:02:57]} 4. g3
{[%clk 0:03:01.3]} 4... c5 {[%clk 0:02:46]} 5. cxd5 {[%clk 0:03:01]} 5... exd5
{[%clk 0:02:45.7]} 6. Bg2 {[%clk 0:03:01.9]} 6... Nc6 {[%clk 0:02:44.6]} 7. O-O
{[%clk 0:03:02.2]} 7... Be7 {[%clk 0:02:40.6]} 8. dxc5 {[%clk 0:03:02.5]} 8...
Bxc5 {[%clk 0:02:40.1]} 9. a3 {[%clk 0:03:03.4]} 9... O-O {[%clk 0:02:39]} 10.
b4 {[%clk 0:03:03.5]} 10... Bb6 {[%clk 0:02:34.4]} 11. Bb2 {[%clk 0:03:03.8]}
11... Ne4 {[%clk 0:02:33.8]} 12. Nc3 {[%clk 0:03:01.1]} 12... Be6 {[%clk
0:02:25.9]} 13. Na4 {[%clk 0:02:43.2]} 13... Bc7 {[%clk 0:02:15]} 14. Rc1 {[%clk
0:02:43.1]} 14... Qe7 {[%clk 0:02:02.8]} 15. Nd4 {[%clk 0:02:39]} 15... Nxd4
{[%clk 0:01:32]} 16. Qxd4 {[%clk 0:02:39.9]} 16... f6 {[%clk 0:01:31.5]} 17.
Bxe4 {[%clk 0:02:33]} 17... dxe4 {[%clk 0:01:30.9]} 18. Qxe4 {[%clk 0:02:33.4]}
18... Bd6 {[%clk 0:01:06.8]} 19. Nc5 {[%clk 0:02:28]} 19... Bh3 {[%clk
0:01:05.7]} 20. Qxe7 {[%clk 0:02:10.5]} 20... Bxe7 {[%clk 0:01:05.1]} 21. Rfd1
{[%clk 0:02:10.7]} 21... b6 {[%clk 0:01:03.5]} 22. Nd3 {[%clk 0:02:09.4]} 22...
Rac8 {[%clk 0:00:49.5]} 23. Nf4 {[%clk 0:02:07.3]} 23... Rxc1 {[%clk 0:00:43.8]}
24. Rxc1 {[%clk 0:02:04]} 24... Bg4 {[%clk 0:00:33.6]} 25. f3 {[%clk 0:02:03.8]}
25... Bf5 {[%clk 0:00:30.7]} 26. e4 {[%clk 0:02:03.9]} 26... Bc8 {[%clk
0:00:26.3]} 27. Rc7 {[%clk 0:01:57.6]} 27... Bd6 {[%clk 0:00:26]} 28. Rxa7
{[%clk 0:01:57.7]} 28... Bxf4 {[%clk 0:00:24]} 29. gxf4 {[%clk 0:01:58.6]} 29...
Bh3 {[%clk 0:00:22.5]} 30. Kf2 {[%clk 0:01:55.4]} 30... Rc8 {[%clk 0:00:20.5]}
31. Bd4 {[%clk 0:01:54.7]} 31... Rc2+ {[%clk 0:00:19.2]} 32. Ke3 {[%clk
0:01:50.4]} 32... Bf1 {[%clk 0:00:15.4]} 33. Bxb6 {[%clk 0:01:49.6]} 33... Re2+
{[%clk 0:00:11.9]} 34. Kd4 {[%clk 0:01:49]} 34... Rxh2 {[%clk 0:00:11.3]} 35. e5
{[%clk 0:01:32.3]} 35... fxe5+ {[%clk 0:00:04.4]} 36. fxe5 {[%clk 0:01:31.7]}
36... Bh3 {[%clk 0:00:03.9]} 37. Bc5 {[%clk 0:01:22]} 37... h5 {[%clk 0:00:03]}
38. b5 {[%clk 0:01:12.4]} 38... Rb2 {[%clk 0:00:01]} 39. b6 {[%clk 0:01:12.1]}
1-0